[Event "January 2 Late 2024"]
[Site "https://www.chess.com"]
[Date "2024.01.02"]
[Round "10"]
[White "Burke, Paul"]
[Black "HouseOfDurin"]
[Result "0-1"]
[Board "138"]
[TimeControl "180+1"]
[WhiteFideId "2605767"]
[WhiteElo "1943"]
[BlackElo "2232"]
[WhiteTeam "CAN"]
[WhiteClock "0:00:00"]
[BlackClock "0:00:05"]

1. e4 {[%clk 0:03:00]}  c5 {[%clk 0:02:57]} 2. Nf3 {[%clk 0:03:00]}  Nc6 {[%clk 0:02:58]} 3. d4 {[%clk 0:03:00]}  cxd4 {[%clk 0:02:59]} 4. c3 {[%clk 0:03:00]}  dxc3 {[%clk 0:02:58]} 5. Nxc3 {[%clk 0:03:00]}  d6 {[%clk 0:02:59]} 6. Bc4 {[%clk 0:03:00]}  e6 {[%clk 0:03:00]} 7. O-O {[%clk 0:03:00]}  Be7 {[%clk 0:03:00]} 8. Qe2 {[%clk 0:03:00]}  Nf6 {[%clk 0:03:01]} 9. Rd1 {[%clk 0:03:00]}  Qa5 {[%clk 0:03:02]} 10. h3 {[%clk 0:02:59]}  O-O {[%clk 0:03:01]} 11. Bg5 {[%clk 0:02:59]}  Ne5 {[%clk 0:02:58]} 12. Nxe5 {[%clk 0:02:55]}  Qxe5 {[%clk 0:02:57]} 13. Bxf6 {[%clk 0:02:48]}  Bxf6 {[%clk 0:02:58]} 14. f4 {[%clk 0:02:47]}  Qc5+ {[%clk 0:02:57]} 15. Kh1 {[%clk 0:02:47]}  a6 {[%clk 0:02:46]} 16. e5 {[%clk 0:02:47]}  dxe5 {[%clk 0:02:39]} 17. Ne4 {[%clk 0:02:46]}  Qe7 {[%clk 0:02:33]} 18. Nxf6+ {[%clk 0:02:45]}  Qxf6 {[%clk 0:02:34]} 19. fxe5 {[%clk 0:02:45]}  Qh6 {[%clk 0:02:16]} 20. Rd6 {[%clk 0:02:30]}  b5 {[%clk 0:02:13]} 21. Bd3 {[%clk 0:02:25]}  Bb7 {[%clk 0:02:13]} 22. Be4 {[%clk 0:02:25]}  Bxe4 {[%clk 0:02:02]} 23. Qxe4 {[%clk 0:02:24]}  Rac8 {[%clk 0:02:01]} 24. Rad1 {[%clk 0:02:17]}  Rc1 {[%clk 0:01:58]} 25. Qd4 {[%clk 0:01:59]}  Rxd1+ {[%clk 0:01:50]} 26. Qxd1 {[%clk 0:01:59]}  Qf4 {[%clk 0:01:46]} 27. Rxa6 {[%clk 0:01:04]}  Qxe5 {[%clk 0:01:45]} 28. Qd2 {[%clk 0:01:02]}  g6 {[%clk 0:01:37]} 29. Rd6 {[%clk 0:01:00]}  Rc8 {[%clk 0:01:32]} 30. Rd8+ {[%clk 0:00:57]}  Rxd8 {[%clk 0:01:32]} 31. Qxd8+ {[%clk 0:00:57]}  Kg7 {[%clk 0:01:33]} 32. Qd2 {[%clk 0:00:57]}  h5 {[%clk 0:01:30]} 33. a3 {[%clk 0:00:57]}  g5 {[%clk 0:01:23]} 34. Qb4 {[%clk 0:00:55]}  Kf6 {[%clk 0:01:16]} 35. Kg1 {[%clk 0:00:51]}  Qe3+ {[%clk 0:01:07]} 36. Kh1 {[%clk 0:00:49]}  Qd3 {[%clk 0:01:00]} 37. Kg1 {[%clk 0:00:43]}  Ke5 {[%clk 0:00:39]} 38. Kh1 {[%clk 0:00:36]}  f5 {[%clk 0:00:38]} 39. Qc5+ {[%clk 0:00:30]}  Qd5 {[%clk 0:00:37]} 40. Qe3+ {[%clk 0:00:29]}  Kf6 {[%clk 0:00:37]} 41. Qc3+ {[%clk 0:00:28]}  Kg6 {[%clk 0:00:31]} 42. Qh8 {[%clk 0:00:25]}  Qd7 {[%clk 0:00:23]} 43. Qg8+ {[%clk 0:00:24]}  Kf6 {[%clk 0:00:23]} 44. Qh8+ {[%clk 0:00:21]}  Kg6 {[%clk 0:00:19]} 45. Qg8+ {[%clk 0:00:20]}  Kh6 {[%clk 0:00:19]} 46. Qh8+ {[%clk 0:00:17]}  Qh7 {[%clk 0:00:19]} 47. Qf6+ {[%clk 0:00:17]}  Qg6 {[%clk 0:00:20]} 48. Qf8+ {[%clk 0:00:17]}  Qg7 {[%clk 0:00:20]} 49. Qc5 {[%clk 0:00:15]}  Qxb2 {[%clk 0:00:16]} 50. Qf8+ {[%clk 0:00:15]}  Qg7 {[%clk 0:00:16]} 51. Qc5 {[%clk 0:00:14]}  Qa1+ {[%clk 0:00:14]} 52. Kh2 {[%clk 0:00:12]}  Kg6 {[%clk 0:00:12]} 53. Qe7 {[%clk 0:00:11]}  Qf6 {[%clk 0:00:10]} 54. Qe8+ {[%clk 0:00:10]}  Qf7 {[%clk 0:00:10]} 55. Qh8 {[%clk 0:00:09]}  g4 {[%clk 0:00:10]} 56. h4 {[%clk 0:00:08]}  Qc7+ {[%clk 0:00:08]} 57. Kg1 {[%clk 0:00:07]}  Qg7 {[%clk 0:00:05]} 58. Qe8+ {[%clk 0:00:07]}  Kf6 {[%clk 0:00:05]} 59. Qd8+ {[%clk 0:00:06]}  Ke5 {[%clk 0:00:04]} 60. Qb8+ {[%clk 0:00:04]}  Kd5 {[%clk 0:00:04]} 61. Qd8+ {[%clk 0:00:04]}  Ke4 {[%clk 0:00:04]} 62. Qd2 {[%clk 0:00:02]}  Qd4+ {[%clk 0:00:04]} 63. Qxd4+ {[%clk 0:00:01]}  Kxd4 {[%clk 0:00:05]} 64. Kf2 {[%clk 0:00:00]}  e5 {[%clk 0:00:05]} 0-1

[Event "January 2 Late 2024"]
[Site "https://www.chess.com"]
[Date "2024.01.02"]
[Round "10"]
[White "Sanchez Alvares, Kelvin Antonio"]
[Black "Petersson, Kjell"]
[Result "1-0"]
[Board "140"]
[TimeControl "180+1"]
[WhiteFideId "3906680"]
[BlackFideId "1705148"]
[WhiteElo "2377"]
[BlackElo "2116"]
[WhiteTeam "VEN"]
[BlackTeam "SWE"]
[WhiteClock "0:00:12"]
[BlackClock "0:00:10"]

1. e4 {[%clk 0:03:00]}  c5 {[%clk 0:03:00]} 2. Nf3 {[%clk 0:03:00]}  d6 {[%clk 0:03:00]} 3. d4 {[%clk 0:02:58]}  cxd4 {[%clk 0:03:01]} 4. Nxd4 {[%clk 0:02:58]}  Nf6 {[%clk 0:03:02]} 5. Nc3 {[%clk 0:02:57]}  g6 {[%clk 0:03:02]} 6. Be3 {[%clk 0:02:41]}  Bg7 {[%clk 0:03:02]} 7. f3 {[%clk 0:02:23]}  Nc6 {[%clk 0:03:03]} 8. Qd2 {[%clk 0:02:19]}  O-O {[%clk 0:03:03]} 9. O-O-O {[%clk 0:02:06]}  d5 {[%clk 0:03:04]} 10. exd5 {[%clk 0:01:39]}  Nxd5 {[%clk 0:03:05]} 11. Nxc6 {[%clk 0:01:15]}  bxc6 {[%clk 0:03:06]} 12. Bc4 {[%clk 0:00:49]}  Be6 {[%clk 0:02:40]} 13. Nxd5 {[%clk 0:00:36]}  cxd5 {[%clk 0:02:33]} 14. Bxd5 {[%clk 0:00:27]}  Rb8 {[%clk 0:02:23]} 15. Bb3 {[%clk 0:00:20]}  Qc8 {[%clk 0:02:05]} 16. Kb1 {[%clk 0:00:15]}  Qa6 {[%clk 0:01:38]} 17. Bd4 {[%clk 0:00:12]}  Rfd8 {[%clk 0:01:28]} 18. Qe3 {[%clk 0:00:12]}  Bxd4 {[%clk 0:01:08]} 19. Rxd4 {[%clk 0:00:12]}  Rxd4 {[%clk 0:01:05]} 20. Qxd4 {[%clk 0:00:13]}  Bxb3 {[%clk 0:01:00]} 21. axb3 {[%clk 0:00:11]}  Qb6 {[%clk 0:00:38]} 22. Qxb6 {[%clk 0:00:09]}  Rxb6 {[%clk 0:00:36]} 23. Re1 {[%clk 0:00:10]}  e6 {[%clk 0:00:36]} 24. Re4 {[%clk 0:00:10]}  Kf8 {[%clk 0:00:36]} 25. Kc1 {[%clk 0:00:10]}  Ke7 {[%clk 0:00:36]} 26. Kd2 {[%clk 0:00:11]}  f5 {[%clk 0:00:36]} 27. Rd4 {[%clk 0:00:10]}  e5 {[%clk 0:00:34]} 28. Ra4 {[%clk 0:00:10]}  a6 {[%clk 0:00:30]} 29. Rc4 {[%clk 0:00:08]}  Kd6 {[%clk 0:00:30]} 30. Ke3 {[%clk 0:00:08]}  g5 {[%clk 0:00:25]} 31. g3 {[%clk 0:00:08]}  h5 {[%clk 0:00:25]} 32. h3 {[%clk 0:00:08]}  Rb5 {[%clk 0:00:14]} 33. Rc8 {[%clk 0:00:07]}  Ke6 {[%clk 0:00:12]} 34. Rc6+ {[%clk 0:00:07]}  Kd5 {[%clk 0:00:12]} 35. Rxa6 {[%clk 0:00:07]}  Rc5 {[%clk 0:00:13]} 36. c4+ {[%clk 0:00:06]}  Rxc4 {[%clk 0:00:11]} 37. bxc4+ {[%clk 0:00:07]}  Kxc4 {[%clk 0:00:11]} 38. Ra5 {[%clk 0:00:08]}  f4+ {[%clk 0:00:11]} 39. gxf4 {[%clk 0:00:07]}  exf4+ {[%clk 0:00:10]} 40. Ke4 {[%clk 0:00:08]}  g4 {[%clk 0:00:11]} 41. hxg4 {[%clk 0:00:08]}  h4 {[%clk 0:00:11]} 42. Rh5 {[%clk 0:00:06]}  h3 {[%clk 0:00:11]} 43. Rxh3 {[%clk 0:00:07]}  Kb3 {[%clk 0:00:12]} 44. Kxf4 {[%clk 0:00:07]}  Kxb2 {[%clk 0:00:12]} 45. g5 {[%clk 0:00:08]}  Kc3 {[%clk 0:00:13]} 46. g6 {[%clk 0:00:09]}  Kc4 {[%clk 0:00:14]} 47. g7 {[%clk 0:00:10]}  Kd5 {[%clk 0:00:14]} 48. g8=Q+ {[%clk 0:00:11]}  Kd6 {[%clk 0:00:14]} 49. Qg5 {[%clk 0:00:11]}  Kd7 {[%clk 0:00:10]} 50. Rh6 {[%clk 0:00:12]} 1-0

[Event "January 2 Late 2024"]
[Site "https://www.chess.com"]
[Date "2024.01.02"]
[Round "10"]
[White "Anna20240"]
[Black "Desideri, Ricardo Maruchi"]
[Result "0-1"]
[Board "145"]
[TimeControl "180+1"]
[BlackFideId "2110440"]
[WhiteElo "1853"]
[BlackElo "1987"]
[BlackTeam "BRA"]
[WhiteClock "0:00:00"]
[BlackClock "0:00:22"]

1. d4 {[%clk 0:02:54]}  Nf6 {[%clk 0:02:58]} 2. c4 {[%clk 0:02:55]}  c5 {[%clk 0:02:55]} 3. Nf3 {[%clk 0:02:55]}  cxd4 {[%clk 0:02:53]} 4. Nxd4 {[%clk 0:02:55]}  e6 {[%clk 0:02:52]} 5. g3 {[%clk 0:02:52]}  a6 {[%clk 0:02:53]} 6. Bg2 {[%clk 0:02:52]}  Nc6 {[%clk 0:02:50]} 7. Nc3 {[%clk 0:02:48]}  Be7 {[%clk 0:02:49]} 8. e4 {[%clk 0:02:48]}  O-O {[%clk 0:02:46]} 9. O-O {[%clk 0:02:48]}  d6 {[%clk 0:02:45]} 10. Bg5 {[%clk 0:02:46]}  Nb8 {[%clk 0:02:44]} 11. Qc2 {[%clk 0:02:39]}  Nbd7 {[%clk 0:02:42]} 12. Rad1 {[%clk 0:02:36]}  Qc7 {[%clk 0:02:32]} 13. b3 {[%clk 0:02:29]}  b6 {[%clk 0:02:31]} 14. e5 {[%clk 0:02:20]}  dxe5 {[%clk 0:02:28]} 15. Nxe6 {[%clk 0:02:16]}  fxe6 {[%clk 0:02:25]} 16. Bxa8 {[%clk 0:02:16]}  Bb7 {[%clk 0:02:17]} 17. Bxb7 {[%clk 0:02:16]}  Qxb7 {[%clk 0:02:17]} 18. Bxf6 {[%clk 0:02:14]}  Nxf6 {[%clk 0:02:06]} 19. Rde1 {[%clk 0:02:11]}  Bd6 {[%clk 0:02:01]} 20. Ne4 {[%clk 0:02:06]}  Bc7 {[%clk 0:01:57]} 21. Nxf6+ {[%clk 0:02:03]}  Rxf6 {[%clk 0:01:56]} 22. Qe4 {[%clk 0:01:52]}  Qc8 {[%clk 0:01:53]} 23. Re3 {[%clk 0:01:36]}  Qf8 {[%clk 0:01:47]} 24. Rd1 {[%clk 0:01:26]}  Bd6 {[%clk 0:01:43]} 25. Re2 {[%clk 0:01:14]}  Bc5 {[%clk 0:01:41]} 26. Rf1 {[%clk 0:01:08]}  Rf5 {[%clk 0:01:36]} 27. Qb1 {[%clk 0:00:45]}  g5 {[%clk 0:01:22]} 28. Qe1 {[%clk 0:00:39]}  h5 {[%clk 0:01:19]} 29. Rxe5 {[%clk 0:00:39]}  h4 {[%clk 0:01:05]} 30. Rxf5 {[%clk 0:00:19]}  Qxf5 {[%clk 0:01:03]} 31. gxh4 {[%clk 0:00:17]}  gxh4 {[%clk 0:01:03]} 32. Qc3 {[%clk 0:00:17]}  Qg4+ {[%clk 0:00:49]} 33. Kh1 {[%clk 0:00:16]}  Qe4+ {[%clk 0:00:45]} 34. f3 {[%clk 0:00:15]}  Qe2 {[%clk 0:00:45]} 35. Rg1+ {[%clk 0:00:14]}  Bxg1 {[%clk 0:00:44]} 36. Kxg1 {[%clk 0:00:13]}  Qd1+ {[%clk 0:00:41]} 37. Kf2 {[%clk 0:00:11]}  Qd6 {[%clk 0:00:37]} 38. Qe3 {[%clk 0:00:11]}  Qxh2+ {[%clk 0:00:36]} 39. Ke1 {[%clk 0:00:10]}  Qg3+ {[%clk 0:00:31]} 40. Kd2 {[%clk 0:00:09]}  e5 {[%clk 0:00:27]} 41. Kc3 {[%clk 0:00:03]}  Qf4 {[%clk 0:00:26]} 42. Qxb6 {[%clk 0:00:01]}  Qd4+ {[%clk 0:00:23]} 43. Kb4 {[%clk 0:00:00]}  Qxb6+ {[%clk 0:00:22]} 0-1

[Event "January 2 Late 2024"]
[Site "https://www.chess.com"]
[Date "2024.01.02"]
[Round "11"]
[White "Nakamura, Hikaru"]
[Black "Paravyan, David"]
[Result "1-0"]
[Board "1"]
[TimeControl "180+1"]
[WhiteFideId "2016192"]
[BlackFideId "4194985"]
[WhiteElo "3281"]
[BlackElo "3121"]
[WhiteTeam "USA"]
[BlackTeam "FID"]
[WhiteClock "0:00:02"]
[BlackClock "0:00:00"]

1. Nf3 {[%clk 0:02:58]}  d5 {[%clk 0:03:00]} 2. g3 {[%clk 0:02:57]}  g6 {[%clk 0:03:00]} 3. d4 {[%clk 0:02:56]}  Bg7 {[%clk 0:03:00]} 4. Bg2 {[%clk 0:02:57]}  Nf6 {[%clk 0:03:00]} 5. O-O {[%clk 0:02:56]}  O-O {[%clk 0:03:01]} 6. c4 {[%clk 0:02:55]}  dxc4 {[%clk 0:03:02]} 7. Na3 {[%clk 0:02:55]}  c5 {[%clk 0:03:02]} 8. dxc5 {[%clk 0:02:52]}  c3 {[%clk 0:03:02]} 9. Qb3 {[%clk 0:02:49]}  Ne4 {[%clk 0:02:45]} 10. Be3 {[%clk 0:02:16]}  cxb2 {[%clk 0:02:43]} 11. Rad1 {[%clk 0:02:16]}  Qa5 {[%clk 0:02:32]} 12. Bd4 {[%clk 0:02:14]}  Nc6 {[%clk 0:02:10]} 13. Bxg7 {[%clk 0:02:07]}  Kxg7 {[%clk 0:02:11]} 14. Nd4 {[%clk 0:01:58]}  Nxd4 {[%clk 0:01:44]} 15. Rxd4 {[%clk 0:01:59]}  Nf6 {[%clk 0:01:35]} 16. Qxb2 {[%clk 0:01:42]}  Qxc5 {[%clk 0:01:34]} 17. Rc1 {[%clk 0:01:42]}  Qb6 {[%clk 0:01:15]} 18. Rb4 {[%clk 0:01:35]}  Qe6 {[%clk 0:01:15]} 19. Nb5 {[%clk 0:01:33]}  Rb8 {[%clk 0:01:12]} 20. Nxa7 {[%clk 0:00:58]}  Bd7 {[%clk 0:01:09]} 21. Bxb7 {[%clk 0:00:56]}  Rfd8 {[%clk 0:01:03]} 22. a3 {[%clk 0:00:48]}  h5 {[%clk 0:00:59]} 23. Bf3 {[%clk 0:00:46]}  Rxb4 {[%clk 0:00:55]} 24. axb4 {[%clk 0:00:45]}  h4 {[%clk 0:00:50]} 25. Nc6 {[%clk 0:00:35]}  Bxc6 {[%clk 0:00:46]} 26. Bxc6 {[%clk 0:00:36]}  h3 {[%clk 0:00:11]} 27. b5 {[%clk 0:00:35]}  Qd6 {[%clk 0:00:12]} 28. Qb1 {[%clk 0:00:30]}  Ng4 {[%clk 0:00:08]} 29. b6 {[%clk 0:00:15]}  Qd4 {[%clk 0:00:08]} 30. Qa1 {[%clk 0:00:13]}  Qxa1 {[%clk 0:00:02]} 31. Rxa1 {[%clk 0:00:14]}  Rd2 {[%clk 0:00:02]} 32. Rb1 {[%clk 0:00:12]}  Ne5 {[%clk 0:00:01]} 33. Bb5 {[%clk 0:00:06]}  Rd8 {[%clk 0:00:01]} 34. b7 {[%clk 0:00:06]}  Rb8 {[%clk 0:00:02]} 35. Ba6 {[%clk 0:00:07]}  Kf6 {[%clk 0:00:01]} 36. Rc1 {[%clk 0:00:07]}  Ke6 {[%clk 0:00:01]} 37. Rc8 {[%clk 0:00:07]}  Nd7 {[%clk 0:00:02]} 38. f3 {[%clk 0:00:05]}  f5 {[%clk 0:00:02]} 39. Kf2 {[%clk 0:00:06]}  g5 {[%clk 0:00:02]} 40. g4 {[%clk 0:00:06]}  f4 {[%clk 0:00:02]} 41. Ke1 {[%clk 0:00:07]}  Kd6 {[%clk 0:00:02]} 42. Kd2 {[%clk 0:00:07]}  e5 {[%clk 0:00:02]} 43. Kc3 {[%clk 0:00:07]}  Kd5 {[%clk 0:00:02]} 44. Kb4 {[%clk 0:00:06]}  Kd4 {[%clk 0:00:02]} 45. Kb5 {[%clk 0:00:06]}  Kd5 {[%clk 0:00:02]} 46. Ka5 {[%clk 0:00:03]}  Kd6 {[%clk 0:00:02]} 47. Kb4 {[%clk 0:00:03]}  Kd5 {[%clk 0:00:02]} 48. Kb5 {[%clk 0:00:03]}  Kd6 {[%clk 0:00:03]} 49. Kc4 {[%clk 0:00:02]}  Nb6+ {[%clk 0:00:03]} 50. Kd3 {[%clk 0:00:02]}  Nd7 {[%clk 0:00:02]} 51. Kd2 {[%clk 0:00:03]}  Kd5 {[%clk 0:00:02]} 52. e3 {[%clk 0:00:04]}  e4 {[%clk 0:00:02]} 53. fxe4+ {[%clk 0:00:03]}  Kxe4 {[%clk 0:00:03]} 54. exf4 {[%clk 0:00:04]}  Kxf4 {[%clk 0:00:04]} 55. Rc4+ {[%clk 0:00:02]}  Kf3 {[%clk 0:00:04]} 56. Ke1 {[%clk 0:00:02]}  Ne5 {[%clk 0:00:05]} 57. Rc3+ {[%clk 0:00:02]}  Kxg4 {[%clk 0:00:00]} 58. Re3 {[%clk 0:00:02]} 1-0

[Event "January 2 Late 2024"]
[Site "https://www.chess.com"]
[Date "2024.01.02"]
[Round "11"]
[White "Brodsky, David"]
[Black "Radjabov, Teimour"]
[Result "0-1"]
[Board "5"]
[TimeControl "180+1"]
[WhiteFideId "2073250"]
[BlackFideId "13400924"]
[WhiteElo "2902"]
[BlackElo "3040"]
[WhiteTeam "USA"]
[BlackTeam "AZE"]
[WhiteClock "0:00:02"]
[BlackClock "0:00:22"]

1. e4 {[%clk 0:03:00]}  c5 {[%clk 0:02:59]} 2. Nf3 {[%clk 0:03:00]}  Nc6 {[%clk 0:02:59]} 3. d4 {[%clk 0:03:00]}  cxd4 {[%clk 0:03:00]} 4. Nxd4 {[%clk 0:03:01]}  e5 {[%clk 0:03:00]} 5. Nb5 {[%clk 0:03:01]}  d6 {[%clk 0:03:00]} 6. N1c3 {[%clk 0:03:02]}  a6 {[%clk 0:02:59]} 7. Na3 {[%clk 0:03:02]}  Be6 {[%clk 0:02:57]} 8. Nc4 {[%clk 0:03:02]}  Rb8 {[%clk 0:02:55]} 9. Be3 {[%clk 0:03:00]}  b5 {[%clk 0:02:49]} 10. Nd2 {[%clk 0:02:59]}  Nf6 {[%clk 0:02:49]} 11. a4 {[%clk 0:02:54]}  b4 {[%clk 0:02:46]} 12. Nd5 {[%clk 0:02:54]}  Nxd5 {[%clk 0:02:37]} 13. exd5 {[%clk 0:02:55]}  Bxd5 {[%clk 0:02:38]} 14. Bxa6 {[%clk 0:02:53]}  Be7 {[%clk 0:02:20]} 15. Nc4 {[%clk 0:02:17]}  Be6 {[%clk 0:01:59]} 16. Bb5 {[%clk 0:02:17]}  O-O {[%clk 0:01:54]} 17. O-O {[%clk 0:01:56]}  Qc7 {[%clk 0:01:45]} 18. Qf3 {[%clk 0:01:34]}  Rfc8 {[%clk 0:01:08]} 19. Rfd1 {[%clk 0:01:34]}  f5 {[%clk 0:01:06]} 20. Qe2 {[%clk 0:01:20]}  Bf7 {[%clk 0:00:47]} 21. f4 {[%clk 0:01:13]}  Nd4 {[%clk 0:00:37]} 22. Bxd4 {[%clk 0:01:04]}  exd4 {[%clk 0:00:38]} 23. b3 {[%clk 0:01:00]}  Bf6 {[%clk 0:00:38]} 24. Ra2 {[%clk 0:00:42]}  Qc5 {[%clk 0:00:33]} 25. Kh1 {[%clk 0:00:37]}  g6 {[%clk 0:00:33]} 26. h3 {[%clk 0:00:26]}  Kg7 {[%clk 0:00:33]} 27. Rd2 {[%clk 0:00:22]}  Bd5 {[%clk 0:00:31]} 28. Kh2 {[%clk 0:00:21]}  h5 {[%clk 0:00:30]} 29. Nb2 {[%clk 0:00:18]}  Be4 {[%clk 0:00:30]} 30. Bd3 {[%clk 0:00:16]}  d5 {[%clk 0:00:29]} 31. a5 {[%clk 0:00:15]}  Qd6 {[%clk 0:00:29]} 32. Qf2 {[%clk 0:00:14]}  h4 {[%clk 0:00:29]} 33. a6 {[%clk 0:00:14]}  Bg5 {[%clk 0:00:26]} 34. g3 {[%clk 0:00:08]}  hxg3+ {[%clk 0:00:25]} 35. Kxg3 {[%clk 0:00:09]}  Bf6 {[%clk 0:00:21]} 36. a7 {[%clk 0:00:09]}  Ra8 {[%clk 0:00:22]} 37. Ra6 {[%clk 0:00:09]}  Qe7 {[%clk 0:00:22]} 38. Na4 {[%clk 0:00:02]}  Bh4+ {[%clk 0:00:22]} 0-1

[Event "January 2 Late 2024"]
[Site "https://www.chess.com"]
[Date "2024.01.02"]
[Round "11"]
[White "Le, Tuan Minh"]
[Black "Lysyj, Igor"]
[Result "0-1"]
[Board "8"]
[TimeControl "180+1"]
[WhiteFideId "12401153"]
[BlackFideId "4150120"]
[WhiteElo "3027"]
[BlackElo "2846"]
[WhiteTeam "VIE"]
[BlackTeam "FID"]
[WhiteClock "0:00:20"]
[BlackClock "0:00:49"]

1. d4 {[%clk 0:02:59]}  d5 {[%clk 0:02:59]} 2. Nf3 {[%clk 0:02:58]}  Nf6 {[%clk 0:02:59]} 3. Bf4 {[%clk 0:02:59]}  Bf5 {[%clk 0:02:59]} 4. c4 {[%clk 0:02:59]}  e6 {[%clk 0:02:58]} 5. Nc3 {[%clk 0:02:59]}  Nbd7 {[%clk 0:02:58]} 6. e3 {[%clk 0:02:58]}  Bb4 {[%clk 0:02:57]} 7. Be2 {[%clk 0:02:55]}  dxc4 {[%clk 0:02:53]} 8. Bxc4 {[%clk 0:02:54]}  Nb6 {[%clk 0:02:50]} 9. O-O {[%clk 0:02:31]}  O-O {[%clk 0:02:39]} 10. Bb3 {[%clk 0:02:28]}  Nfd5 {[%clk 0:02:37]} 11. Nxd5 {[%clk 0:02:26]}  exd5 {[%clk 0:02:37]} 12. Ne5 {[%clk 0:02:23]}  c6 {[%clk 0:02:36]} 13. Bc2 {[%clk 0:02:13]}  Bxc2 {[%clk 0:02:35]} 14. Qxc2 {[%clk 0:02:14]}  Bd6 {[%clk 0:02:35]} 15. Nd3 {[%clk 0:02:15]}  Bxf4 {[%clk 0:02:31]} 16. Nxf4 {[%clk 0:02:16]}  Nc4 {[%clk 0:02:31]} 17. Nd3 {[%clk 0:02:15]}  Nd6 {[%clk 0:02:31]} 18. Nc5 {[%clk 0:02:11]}  Qe7 {[%clk 0:02:28]} 19. Rac1 {[%clk 0:02:11]}  g6 {[%clk 0:02:24]} 20. Rfd1 {[%clk 0:02:12]}  h5 {[%clk 0:02:23]} 21. Qc3 {[%clk 0:01:59]}  Rae8 {[%clk 0:02:21]} 22. Qb4 {[%clk 0:01:56]}  h4 {[%clk 0:02:16]} 23. h3 {[%clk 0:01:45]}  Kg7 {[%clk 0:02:15]} 24. Rd3 {[%clk 0:01:40]}  g5 {[%clk 0:02:02]} 25. Rb3 {[%clk 0:01:30]}  Rb8 {[%clk 0:02:00]} 26. Re1 {[%clk 0:01:18]}  Rfe8 {[%clk 0:01:50]} 27. f3 {[%clk 0:01:15]}  b6 {[%clk 0:01:35]} 28. Nd3 {[%clk 0:01:14]}  Nc4 {[%clk 0:01:35]} 29. e4 {[%clk 0:01:00]}  Qxb4 {[%clk 0:01:01]} 30. Nxb4 {[%clk 0:01:00]}  Rbc8 {[%clk 0:01:02]} 31. Kf2 {[%clk 0:00:57]}  a5 {[%clk 0:01:01]} 32. Nd3 {[%clk 0:00:57]}  dxe4 {[%clk 0:00:57]} 33. Rxe4 {[%clk 0:00:35]}  Rxe4 {[%clk 0:00:54]} 34. fxe4 {[%clk 0:00:35]}  Rd8 {[%clk 0:00:52]} 35. Rc3 {[%clk 0:00:35]}  Rxd4 {[%clk 0:00:52]} 36. Kf3 {[%clk 0:00:20]}  Rxd3+ {[%clk 0:00:49]} 0-1

[Event "January 2 Late 2024"]
[Site "https://www.chess.com"]
[Date "2024.01.02"]
[Round "11"]
[White "Kadric, Denis"]
[Black "Anton Guijarro, David"]
[Result "0-1"]
[Board "9"]
[TimeControl "180+1"]
[WhiteFideId "14403803"]
[BlackFideId "2285525"]
[WhiteElo "2859"]
[BlackElo "2991"]
[WhiteTeam "MNE"]
[BlackTeam "ESP"]
[WhiteClock "0:00:43"]
[BlackClock "0:00:51"]

1. e4 {[%clk 0:03:00]}  c5 {[%clk 0:02:59]} 2. Nc3 {[%clk 0:03:00]}  Nc6 {[%clk 0:02:59]} 3. Nge2 {[%clk 0:03:00]}  g6 {[%clk 0:02:57]} 4. d4 {[%clk 0:03:01]}  cxd4 {[%clk 0:02:57]} 5. Nxd4 {[%clk 0:03:02]}  Bg7 {[%clk 0:02:57]} 6. Be3 {[%clk 0:03:02]}  Nf6 {[%clk 0:02:56]} 7. Bc4 {[%clk 0:03:03]}  Qa5 {[%clk 0:02:56]} 8. O-O {[%clk 0:03:03]}  O-O {[%clk 0:02:56]} 9. Bb3 {[%clk 0:03:03]}  d6 {[%clk 0:02:56]} 10. h3 {[%clk 0:03:03]}  Bd7 {[%clk 0:02:54]} 11. Re1 {[%clk 0:03:04]}  Rac8 {[%clk 0:02:51]} 12. Nf3 {[%clk 0:03:04]}  Rfd8 {[%clk 0:02:46]} 13. Qd2 {[%clk 0:02:56]}  Qh5 {[%clk 0:02:35]} 14. Qe2 {[%clk 0:02:41]}  b6 {[%clk 0:02:22]} 15. Rad1 {[%clk 0:02:35]}  Na5 {[%clk 0:02:11]} 16. Nd4 {[%clk 0:02:27]}  Qxe2 {[%clk 0:02:05]} 17. Rxe2 {[%clk 0:02:27]}  Rxc3 {[%clk 0:01:52]} 18. bxc3 {[%clk 0:02:23]}  Nxe4 {[%clk 0:01:53]} 19. Bd2 {[%clk 0:02:14]}  Nxd2 {[%clk 0:01:52]} 20. Rdxd2 {[%clk 0:02:13]}  Kf8 {[%clk 0:01:49]} 21. Rd3 {[%clk 0:02:08]}  Rc8 {[%clk 0:01:46]} 22. Rf3 {[%clk 0:02:03]}  Bf6 {[%clk 0:01:33]} 23. g4 {[%clk 0:02:03]}  h6 {[%clk 0:01:33]} 24. Kh2 {[%clk 0:02:00]}  Rc5 {[%clk 0:01:33]} 25. Kg3 {[%clk 0:01:59]}  Nc4 {[%clk 0:01:26]} 26. Bxc4 {[%clk 0:01:53]}  Rxc4 {[%clk 0:01:27]} 27. h4 {[%clk 0:01:28]}  Ra4 {[%clk 0:01:20]} 28. Rfe3 {[%clk 0:01:21]}  g5 {[%clk 0:01:01]} 29. hxg5 {[%clk 0:01:15]}  hxg5 {[%clk 0:01:02]} 30. Nf5 {[%clk 0:01:00]}  Bxf5 {[%clk 0:01:02]} 31. gxf5 {[%clk 0:01:01]}  Rxa2 {[%clk 0:01:02]} 32. Re4 {[%clk 0:00:53]}  Ra3 {[%clk 0:01:00]} 33. Rc4 {[%clk 0:00:49]}  Rxc3+ {[%clk 0:00:58]} 34. Rxc3 {[%clk 0:00:49]}  Bxc3 {[%clk 0:00:59]} 35. Kg4 {[%clk 0:00:49]}  b5 {[%clk 0:00:53]} 36. Kxg5 {[%clk 0:00:46]}  a5 {[%clk 0:00:54]} 37. Kf4 {[%clk 0:00:46]}  a4 {[%clk 0:00:54]} 38. Re3 {[%clk 0:00:44]}  b4 {[%clk 0:00:53]} 39. Re4 {[%clk 0:00:44]}  a3 {[%clk 0:00:51]} 40. Rc4 {[%clk 0:00:43]}  a2 {[%clk 0:00:51]} 0-1